Cogmind - Beta 16.1 @@@ ROGUE MODE // 2026.02.16 @ 18:21:45 Player: CrispyGuts Result: Destroyed by S-10 Pest with Light Assault Rifle Performance ------------- Evolutions (0) 0 Regions Visited (2) 400 Robots Destroyed (29) 145 Value Destroyed (880) 880 Prototype IDs (13) 260 Alien Tech Used (0) 0 Bonus (0) 0 TOTAL SCORE: 1685 Bonus ------- None Cogmind --------- Core Integrity 0/250 Matter 275/300 Energy 200/200 System Corruption 0% Temperature Cool (8) Movement Rolling (95) Ox1 Location -10/Subcaves Parts ------- > --- POWER (1) -------- Subdweller Power Source > --- PROPULSION (2) --- Wheel > --- UTILITY (2) ------ Disposable Heat Sink Small Storage Unit > --- WEAPON (2) ------- Subdweller Laser > --- INVENTORY (8) ---- Subdweller Power Source Subdweller Power Source Subdweller Optics Scrap Shield Power Bank Subdweller Laser Subdweller Beam Cannon Peak State ------------ > --- POWER ------------ Subdweller Power Source > --- PROPULSION ------- Subdweller Monowheel Subdweller Monowheel > --- UTILITY ---------- Disposable Heat Sink Small Storage Unit > --- WEAPON ----------- Subdweller Beam Cannon Subdweller Machine Gun > --- INVENTORY -------- Small Storage Unit Subdweller Optics Seismic Detector Power Bank Subdweller Laser Subdweller Beam Cannon Mining Laser Flamer [Rating: 15] Favorites ----------- Power Subdweller Power Source Engine Subdweller Power Source Propulsion Aluminum Leg Treads Light Treads Leg Aluminum Leg Wheel Subdweller Monowheel Utility Small Storage Unit Device Disposable Heat Sink Storage Small Storage Unit Weapon Medium Laser Energy Gun Medium Laser Energy Cannon Subdweller Beam Cannon Ballistic Gun Subdweller Machine Gun Launcher Subdweller Shrapnel Launcher Special Weapon Mining Laser Build | -11 -10 -10 ------- Run | Yrd Mat Sub Slots Evolved . | . . . Power . | . . . Propulsion . | . . . Utility . | . . . Weapon . | . . . Parts Attached 29 | 6 3 20 Power 6 | 1 1 4 Engine 6 | 1 1 4 Core . | . . . Reactor . | . . . Propulsion 8 | 2 1 5 Treads 1 | . . 1 Leg 3 | 2 1 . Wheel 4 | . . 4 Hover . | . . . Flight . | . . . Utility 4 | 1 1 2 Device 2 | . 1 1 Storage 2 | 1 . 1 Processor . | . . . Hackware . | . . . Protection . | . . . Artifact . | . . . Weapon 11 | 2 . 9 Energy Gun 4 | 2 . 2 Energy Cannon 3 | . . 3 Ballistic Gun 2 | . . 2 Ballistic Cannon . | . . . Launcher 1 | . . 1 Special Weapon 1 | . . 1 Impact Weapon . | . . . Slashing Weapon . | . . . Piercing Weapon . | . . . Special Melee Weapon . | . . . Unidentified Prototypes . | . . . Parts Lost 5 | . . 5 Power . | . . . Propulsion 4 | . . 4 Utility . | . . . Weapon 1 | . . 1 Highest Loss Streak 1 | . . 1 To Critical Strikes . | . . . Average Backups 7 | 3 7 7 Power . | . 1 . Propulsion . | 1 2 . Utility 3 | . 2 3 Weapon 2 | 1 2 2 Tool/Special . | . . . Unused Backups 12 | . . 12 Power 3 | . . 3 Propulsion 1 | . . 1 Utility 5 | . . 5 Weapon 3 | . . 3 Tool/Special . | . . . Average Slot Usage (%) 92 | . 89 93 Engine 14 | . 14 14 Treads 5 | . . 6 Leg 9 | . 28 5 Wheel 8 | . . 9 Device 12 | . 3 14 Storage 14 | . 14 14 Energy Gun 10 | . 28 7 Energy Cannon 8 | . . 9 Ballistic Gun 7 | . . 9 Peak Build Rating 15 | 6 7 15 Average Rating 10 | 5 6 12 On Entrance 4 | . 6 7 Avg Prop Armor Cover (%) 10 | . 9 10 Naked Turns . | . . . Heaviest Build 23 | 14 15 23 Greatest Support 40 | 20 20 40 Greatest Overweight (x) 2 | 1 1 2 Average Overweight (x) . | . . . Largest Inventory Capacity 8 | 8 8 8 Average Capacity 7 | 7 8 8 Most Carried 8 | 6 8 8 Average Carried 7 | 3 7 7 Final Capacity 8 | 8 8 8 Final Carried 8 | 6 8 8 Class Distribution -------------------- 88% | Mutant 11% | Scavenger-Mutant Dominant Class ---------------- Mutant | -10/Materials Mutant | -10/Subcaves Resources | -11 -10 -10 ----------- Run | Yrd Mat Sub Matter Collected 674 | 260 40 374 Remotely . | . . . Salvage Created 1206 | 130 220 856 Parts 72 | 11 15 46 Haulers Intercepted . | . . . Recyclers Shooed 3 | 2 1 . Parts Field Recycled . | . . . Retrieved Matter . | . . . Parts Self-Destructed 12 | . . 12 Prevented . | . . . Parts Restored . | . . . Kills | -11 -10 -10 ------- Run | Yrd Mat Sub Combat Hostiles Destroyed 20 | . 4 16 Guns 7 | . 2 5 Cannons 9 | . . 9 AOE 1 | . . 1 Classes Destroyed 7 | 3 2 2 Worker 2 | 1 1 . Tunneler 4 | 3 1 . Recycler 1 | 1 . . Watcher 2 | . 2 . Grunt 4 | . 4 . Artisan 1 | . . 1 Subdweller 16 | . . 16 Best Kill Streak 5 | 4 5 3 Combat Bots Only 3 | . 2 3 Max Kills in Single Turn 1 | 1 1 1 Gunslinging . | . . . Exploded 1 | . . 1 Melee . | . . . Uniques/NPCs Destroyed . | . . . Combat | -11 -10 -10 -------- Run | Yrd Mat Sub Hostile Shots Fired 108 | . 28 80 Missed 37 | . 13 24 Hits 71 | . 15 56 Projectile 71 | . 15 56 AOE 1 | . . 1 Critical Strikes 1 | . . 1 Damage Taken 1358 | . 241 1117 Core 258 | . 34 224 Absorbed by Shields . | . . . Core Remaining (%) 100 | 100 . . Volleys Fired 196 | 15 27 154 Largest 2 | 2 2 2 Hottest 130 | 100 100 130 Shots Fired 291 | 26 45 220 Gun 173 | 26 45 102 Cannon 113 | . . 113 Launcher 2 | . . 2 Special 3 | . . 3 Kinetic 41 | . . 41 Thermal 250 | 26 45 179 Explosive . | . . . Electromagnetic . | . . . Robot Hit Streak 23 | 5 11 23 Robot Miss Streak 3 | 3 3 3 Penetration Max . | . . . Secondary Targets 1 | . 1 . Max Gunslinging Chain 1 | . 1 . Shots Hit Robots 141 | 15 27 99 Core Hits 49 | 6 12 31 Critical Kills 1 | . . 1 Critical Parts Destroyed . | . . . Critical Strikes 10 | . 3 7 Burn 9 | . 3 6 Meltdown 1 | . . 1 Melee Attacks . | . . . Impact . | . . . Slashing . | . . . Piercing . | . . . Sneak Attacks . | . . . Combat Hostiles . | . . . Follow-up Attacks . | . . . Damage Inflicted 2583 | 183 493 1907 Guns 1623 | 183 347 1093 Cannons 711 | . . 711 Explosions 249 | . 146 103 Melee . | . . . Ramming . | . . . Kinetic 556 | . . 556 Thermal 1881 | 183 347 1351 Explosive 146 | . 146 . Electromagnetic . | . . . Impact . | . . . Slashing . | . . . Piercing . | . . . Highest Corruption . | . . . Average Corruption . | . . . Corruption Purged . | . . . Corruption Blocked . | . . . Overload Shots . | . . . Overflow Damage . | . . . Projectiles . | . . . Explosions . | . . . Melee . | . . . Knockbacks . | . . . Impact . | . . . Kinetic . | . . . Secondary . | . . . Self-Inflicted Damage 90 | . 69 21 Shots 3 | . 1 2 Rammed . | . . . Targets Rammed . | . . . Kicked . | . . . Crushed . | . . . Highest Temperature 348 | 216 348 69 Average Temperature 97 | 70 159 17 Received Heat Transfer 291 | . 93 198 Effects 4 | . 4 . Energy Bleed 1 | . 1 . Interference 2 | . 2 . Short Circuit 1 | . 1 . Siege Activations . | . . . Martial Activations . | . . . Shielding Activations . | . . . Robots Disrupted . | . . . Combat Hostiles . | . . . Robots Corrupted . | . . . Combat Hostiles . | . . . Parts Fried . | . . . Impact Corruptions . | . . . Robots Melted 3 | . 2 1 Combat Hostiles 3 | . 2 1 Parts Melted 10 | 1 4 5 Heat Transferred 5045 | 555 1258 3232 Parts Sabotaged . | . . . Parts Stolen . | . . . Parts Stripped . | . . . Power Chain Reactions . | . . . Alert | -11 -10 -10 ------- Run | Yrd Mat Sub Maximum Alert Level . | . . . Low Security (%) 100 | 100 100 . Level 1 . | . . . Level 2 . | . . . Level 3 . | . . . Level 4 . | . . . Level 5 . | . . . High Security . | . . . Max Security . | . . . Peak Influence 114 | 10 114 . Initial 3 | . 3 . Average 39 | 2 52 . Influence Increases 285 | 25 230 30 Destroy 0b10 Robot/C 80 | . 80 . Destroy 0b10 Robot/NC 45 | 25 20 . Destroy Leader 24 | . 24 . Successful Hack 14 | . 14 . Disable Machine 15 | . 15 . Destroy Structure 32 | . 32 . Lose Combat Pursuer 75 | . 45 30 Influence Decreases 267 | 20 129 118 Entered New Map 54 | . 2 52 Time Decay 203 | 20 127 56 Lost Part 10 | . . 10 Squads Dispatched 2 | . 2 . Investigation 2 | . 2 . Extermination . | . . . Reinforcement . | . . . Assault . | . . . Garrison . | . . . Intercept . | . . . Searches Triggered . | . . . Construction Impeded . | . . . Haulers Reinforced . | . . . Active Scanning Responses . | . . . Cargo Convoy Interrupts . | . . . Stealth | -11 -10 -10 --------- Run | Yrd Mat Sub Distress Signals 1 | . 1 . Communications Jammed . | . . . Distress Signals . | . . . Times Spotted 30 | . 10 20 Peak Tracking Total 5 | . 3 5 Tactical Retreats 2 | . 1 1 Traps | -11 -10 -10 ------- Run | Yrd Mat Sub Traps Triggered 4 | . 1 3 Indirectly . | . . . Trap Hack Attempts . | . . . Triggered . | . . . Disarmed . | . . . Reprogrammed . | . . . Reused . | . . . Traps Extracted . | . . . Installed 1 | . . 1 Triggered . | . . . Machines | -11 -10 -10 ---------- Run | Yrd Mat Sub Machines Disabled 2 | . 1 1 Max in Single Turn 1 | . 1 1 Machines Repaired . | . . . Machines Dismantled . | . . . Machines Sabotaged . | . . . Overloaded Fab Kills . | . . . Hacking | -11 -10 -10 --------- Run | Yrd Mat Sub Machines Accessed 6 | . 3 3 Terminals 3 | . 3 . Fabricators . | . . . Repair Stations . | . . . Recycling Units . | . . . Scanalyzers . | . . . Garrison Access . | . . . Total Hacks 24 | . 12 12 Successful 18 | . 6 12 Failed 6 | . 6 . Catastrophic 1 | . 1 . Database Lockouts . | . . . Manual 9 | . 9 . Terminals 12 | . 12 . Fabricators . | . . . Repair Stations . | . . . Recycling Units . | . . . Scanalyzers . | . . . Garrison Access . | . . . Terminal Hacks 15 | . 3 12 Record 9 | . . 9 Robot Analysis 1 | . 1 . Open Door 1 | . . 1 Terminal Index 1 | . 1 . Locate Traps 1 | . 1 . Proto ID Catalog 1 | . . 1 Release Object 1 | . . 1 Fabricator Hacks . | . . . Repair Station Hacks . | . . . Recycling Unit Hacks . | . . . Scanalyzer . | . . . Garrison Access Hacks . | . . . Unauthorized Hacks 3 | . 3 . Terminals 3 | . 3 . Botnet 3 | . 3 . Fabricators . | . . . Repair Stations . | . . . Recycling Units . | . . . Scanalyzers . | . . . Garrison Access . | . . . Data Cores Recovered . | . . . Used . | . . . Hacking Detections 3 | . 3 . Full Trace Events 1 | . 1 . Feedback Events . | . . . Feedback Blocked . | . . . Robot Schematics Acquired . | . . . Robots Built . | . . . Authchips . | . . . Time . | . . . Total Robot Build Rating . | . . . Part Schematics Acquired . | . . . Parts Built . | . . . Authchips . | . . . Time . | . . . Total Part Build Rating . | . . . Part Studies Acquired . | . . . Parts Repaired . | . . . Time . | . . . Parts Recycled . | . . . Recycled Matter . | . . . Retrieved Matter . | . . . Retrieved Components . | . . . Parts Scanalyzed . | . . . Part Schematics Acquired . | . . . Parts Damaged . | . . . Bothacking | -11 -10 -10 ------------ Run | Yrd Mat Sub Used RIF Installer . | . . . Robots Hacked . | . . . Non-combat . | . . . Combat . | . . . Robot Hacks Applied . | . . . Relay Couplers Released . | . . . Fabnet Peak Effective % . | . . . Robots Rewired . | . . . Allies Hacked . | . . . Hacks Repelled . | . . . Allies | -11 -10 -10 -------- Run | Yrd Mat Sub Total Allies . | . . . Largest Group . | . . . Highest-Rated Group . | . . . Highest-Rated Ally . | . . . Total Orders . | . . . Ally Attacks . | . . . Total Damage . | . . . Kills . | . . . Allies Corrupted . | . . . Allies Melted . | . . . Intel | -11 -10 -10 ------- Run | Yrd Mat Sub Active Infowar (turns) . | . . . Robot Analysis Total 1 | . 1 . Derelict Logs Recovered 2 | . . 2 Drone Launches . | . . . Drone Recoveries . | . . . Exploration | -11 -10 -10 ------------- Run | Yrd Mat Sub Turns Passed 2659 | 138 391 2130 Spaces Moved 1448 | 65 251 1132 Core 5 | 5 . . Treads 376 | . . 376 Legs 382 | 60 251 71 Wheels 685 | . . 685 Hover . | . . . Flight . | . . . Fastest Speed 50 | 50 120 95 Average Speed 139 | 115 121 144 Slowest Speed 260 | 120 190 260 Overloaded Moves . | . . . Propulsion Burnouts . | . . . Robots Hopped . | . . . Potential Cave-ins 11 | . . 11 Cave-ins Triggered . | . . . Exploration Rate (%) 43 | 5 53 72 Regions Visited 2 Branch Regions 1 Pre-discovered Areas . | . . . Known Exits Taken . | . . . Unknown Exits Taken 2 | 1 1 . Scrap Searched 8 | . . 8 Spaces Dug 60 | . . 60 Terrain Destroyed 131 | . 40 91 Melee . | . . . Projectile 57 | . . 57 AOE 74 | . 40 34 Terrain Rammed . | . . . Walls Destroyed . | . . . Machines Disabled . | . . . Actions | -11 -10 -10 --------- Run | Yrd Mat Sub Total 1785 | 99 293 1393 Wait 54 | 7 7 40 Move 1446 | 64 250 1132 Hop . | . . . Pick Up 26 | 7 3 16 Fast Attach 9 | 5 . 4 Attach 3 | 1 1 1 Detach . | . . . Swap 25 | . 3 22 Drop 24 | . 2 22 Fire 196 | 15 27 154 Melee . | . . . Ram . | . . . Kick . | . . . Crush . | . . . Escape Stasis . | . . . Rewire . | . . . Trap 1 | . . 1 Miscellaneous 1 | . . 1 Route ------- -11/Scrapyard -10/Materials (discovered 3 exits: [*Mat] / [*Min] / *Sub) -10/Subcaves (discovered 1 exit: [*Mat]) History --------- Turn | Location | Event 9 | -11/Scrapyard | Discovered new exit (range 16) 139 | -11/Scrapyard | Entered Materials 287 | -10/Materials | Discovered new exit (range 7) 311 | -10/Materials | Build established: Mutant 487 | -10/Materials | Discovered new exit (range 11) 503 | -10/Materials | Discovered new exit (range 10) 530 | -10/Materials | Entered Subcaves 721 | -10/Subcaves | Ambushed by Subdweller buried in earth 1011 | -10/Subcaves | Learned 4 Materials zone layouts 1038 | -10/Subcaves | Learned Materials emergency access door positions 1058 | -10/Subcaves | Released subatomizers from SUBCON Basin 1289 | -10/Subcaves | Visited 4L-MR0's lab 1314 | -10/Subcaves | Found Power Bank 1529 | -10/Subcaves | Core integrity fell below 50% 1766 | -10/Subcaves | Disturbed a concealed Subdweller 2067 | -10/Subcaves | Ambushed by Subdweller buried in earth 2125 | -10/Subcaves | Ambushed by Subdweller buried in earth 2142 | -10/Subcaves | Ambushed by Subdweller buried in earth 2237 | -10/Subcaves | Shifting Twisted Machinery released Sub. Power Source 2239 | -10/Subcaves | Shifting Twisted Machinery released Barrage Gun 2287 | -10/Subcaves | A swath of the cavern ceiling suddenly collapsed 2500 | -10/Subcaves | A swath of the cavern ceiling suddenly collapsed 2526 | -10/Subcaves | Core integrity fell below 20% 2608 | -10/Subcaves | Discovered new exit (range 11) 2660 | -10/Subcaves | Destroyed by S-10 Pest with Light Assault Rifle Last Messages --------------- 02341_ Acquired Sub. Power Source. 02427_ KB-CF6(u) builds Twisted Machinery. 02451_ BY-V9T(R) destroyed. 02461_ MK-NVS(R) destroyed. 02470_ Acquired 48 matter. 02471_ Acquired 27 matter. 02477_ KB-CF6(u) cries out in pain. 02477_ KB-CF6(u) destroyed. 02480_ Acquired 4 matter. 02483_ Acquired Wheel. A swath of the cavern ceiling suddenly collapses. 02518_ ZE-WN5(R): "SUBMAD!" 02533_ Sub. Monowheel destroyed. 02543_ ZE-WN5(R) suffers critical hit (Meltdown). 02543_ Disposable Heat Sink melted. 02548_ Acquired 37 matter. 02608_ EXIT=FOUND 02645_ Sub. Beam Cannon shoots sparks and powers down. 02655_ Destroyed Lgt. Ion Engine. 02658_ Barrage Gun destroyed. Map ----- +----------------------------------------------------+ | ???????????????????????## ## "## | | ??????????????????????##" """ """ ###? | | ??????????????????????#"" """"" "" ##??? | | ??????????????????????# "## #######???? | | ??????????????????????## ####"""%##### #??????? | | ??????????????????????## ###??##" "### ##?????? | | ??????????????????????# "" #?#### "%##" #?????? | | ??????????????????????# "# "" "## " *! #?????? | | ??????????????????????## #?"" ####![!& #####?? | | ??????????????????????## ##"" ## =[ ##""### | | ?????????????????????## "" "" """""# | | ?????????????????????# "" " | | ?????????????????????# < # ## ###### | | ?????????????????????## ##?###????# """"## | | ?????????????????????## #### #????????# """""# | | ?????????????????????# ##???##???????# """""" | | ?????????????????????# ##??##??????? """""" | | ?????????????????????# ### #????? """""# | | ?????????????????????# #????#### ###"#? | | ?????????????????????# #???????## #????? | | ##???????????????????## ##????????## "#????? | | ###??????????????????# # ##?????????## ##????# | | ##?????????????????## #??????????#####??## | | #?????????????????# # #?????????## #?# | | #?????????????????## ### #???????# ## | | ##?????????????????## @ ## ???????# | | " ##?????????????????# ### ???####### | | ##????????????????#ss #?## ### ##?# | | #??????????? % s ## ### | | ##????? ##### ## # | | #????" #????? #???# # | | #???? ###### "??????######??## ## | | #####????? ???????## ?????????????## ##? | | ##???????????????????#####???????????### ##? | | #????????????????????????????????????# ## | | ##??????????????????????????????????## # | | #?????????????????????????????##??## ## ## | | #?????????????????????????????# ?# ## ## | | #?????????????????????????????# ## ### # | | ##?????????????????????????????# ## # | | ##??????????????????????????????#### ## # | | ???????????????????????????????????# ### !## | | ???????????????????????????????????## ### ## | | ????????????????????????????????????## | | ?????????????????????????????????????## | | #?????????????????????????????????????# | | #?????????????????????????????????????# | | ##????????????????????????????????????## #### | | ###???????????????????????????????????## ##??# | | ###???#####??????????????????????????## #???# | +----------------------------------------------------+ Best States ------------- Heat Dissipation 35 Coolant Potential 50 Energy Generation 15 Energy Capacity 250 Matter Stores 300 Matter Capacity 300 Sight Range 16 Terrain Scan Density 10 Evasion (%) 55 Recoil Reduction 1 Item Schematics ----------------- None Robot Schematics ------------------ None Fabricated ------------ Nothing Repaired ---------- Nothing Studied --------- None Alien Tech Used ----------------- None Achievements -------------- None Challenges ------------ None Game ------ Seed OvertunedSmartAxe Manual? 0 Play Time 00:31:54 Cumulative 137.9 hours Start 2026.02.16 @ 17:46:01 End 2026.02.16 @ 18:21:45 Sessions 1 Manual Loads 0 Difficulty Rogue Special Mode None Game No. 69 Rogue 8 Adventurer 61 Explorer 0 Win Type - Total 2 Types 1/0/0/0/0/0/0/0/0/1 Lore% 61 Gallery% 54 Achievement% 44 Wizard Run 0 Options --------- Layout 0 ASCII 0 Keyboard 0 Movement Mouse Keybinds 0 Fullscreen 2 Font 24/Smallcaps Map View 76x50 Zoom Use 0% Tactical HUD 1 Map Filters NONE Filters NONE Steam 1 RUN: 58b297b6-aad6-41f5-9626-24adeb85f18f